bitfinex/quotes_ETHUSD_20240819
["timestamp","ask_amount","ask_price","bid_price","bid_amount"]
[1724056191981,0.37265244,2625.8,2625.7,5.3319]
[1724056192182,1.17292486,2625.8,2625.7,5.3319]
[1724056196921,0.37265244,2625.8,2625.7,5.3319]
[1724056197201,1.17292486,2625.8,2625.7,5.3319]
[1724056200633,0.37265244,2625.8,2625.7,11.38387]
[1724056207529,0.37265244,2625.8,2625.7,6.26932]
[1724056207738,1.17292486,2625.8,2625.7,5.3319]
[1724056210329,1.17292486,2625.8,2625.7,9.4165]
[1724056211475,0.37265244,2625.8,2625.7,12.08245]
[1724056211620,0.37265244,2625.8,2625.7,16.557298]
[1724056215443,2.44e-06,2625.8,2625.7,25.99777476]
[1724056215641,0.80027242,2626.6,2626.5,2.66514]
[1724056215963,0.80027242,2626.6,2626.5,6.96628]
[1724056216166,1.20048882,2626.7,2626.6,5.33008]
[1724056216325,1.60026179,2626.8,2626.7,2.66494]
[1724056216326,1.20048882,2626.8,2626.7,2.66494]
[1724056216526,1.60026179,2626.9,2626.8,2.66483]
[1724056216871,4.3674933,2627.0,2626.9,2.66473]
[1724056216872,3.96926179,2627.0,2626.9,2.66473]
[1724056217532,4.3172462,2627.0,2626.9,2.66473]
[1724056218689,4.3172462,2627.0,2626.8,2.66479]
[1724056218869,1.59713836,2626.9,2626.8,5.32957]
[1724056219498,1.54568297,2626.9,2626.8,2.66478]
[1724056219695,0.34810784,2626.9,2626.8,2.66478]
[1724056220296,1.54568219,2626.9,2626.8,2.66478]
[1724056221349,1.14607103,2626.9,2626.8,2.66478]
[1724056222902,1.14590838,2626.9,2626.8,2.66478]
[1724056224383,2.63500784,2626.9,2626.8,2.66478]
[1724056224696,3.83258219,2626.9,2626.8,2.66478]
[1724056224878,2.63500784,2626.9,2626.8,2.66478]
[1724056225415,3.43247667,2626.9,2626.8,2.66478]
[1724056227204,3.43247667,2626.9,2626.7,2.66488]
[1724056227503,3.89548177,2626.9,2626.7,2.66488]
[1724056227869,3.43247667,2626.9,2626.7,2.66488]
[1724056229019,3.43247667,2626.9,2626.8,2.66483]
[1724056230317,2.63500784,2626.9,2626.8,2.66483]
[1724056230539,0.34810784,2626.9,2626.8,2.66483]
[1724056231116,1.14557667,2626.9,2626.8,2.66483]
[1724056231286,0.34810784,2626.9,2626.8,2.66483]
[1724056231488,1.14557667,2626.9,2626.8,2.66483]
[1724056233861,1.14557667,2626.9,2626.2,2.2693]
[1724056234162,3.9654,2626.6,2626.0,2.66559]
[1724056234342,1.636,2626.4,2626.0,2.66559]
[1724056234492,0.79746883,2626.3,2626.0,2.66559]
[1724056234695,2.83357435,2626.4,2626.0,2.66559]
[1724056234696,0.79746883,2626.2,2626.0,2.66559]
[1724056235016,1.14553224,2626.2,2626.0,5.33118]
[1724056235329,0.34806341,2626.2,2626.0,2.66559]
[1724056235529,0.34806341,2626.2,2625.8,2.66578]
[1724056235530,5.06153224,2626.2,2625.8,2.66578]
[1724056235841,3.07746883,2626.2,2625.8,2.66578]
[1724056236049,0.34806341,2626.1,2625.8,2.66578]
[1724056236239,0.34806341,2626.1,2625.8,5.33157]
[1724056237039,0.34806341,2626.1,2625.9,2.66575]
[1724056239343,1.14553224,2626.1,2625.8,2.66578]
[1724056239922,1.14553224,2626.1,2625.8,5.33157]
[1724056240140,1.14553224,2626.1,2625.8,2.66578]
[1724056240842,0.34806341,2626.1,2625.9,2.66571]
[1724056242069,1.14553224,2626.1,2625.8,2.66578]
[1724056242270,1.14553224,2626.1,2625.8,5.33157]
[1724056242962,1.14553224,2626.1,2625.8,2.66578]
[1724056243134,1.14553224,2626.1,2625.8,5.33157]
[1724056243334,1.14553224,2626.1,2625.9,2.66574]
[1724056244162,1.14553224,2626.1,2625.8,2.66578]
[1724056244163,0.34806341,2626.1,2625.8,2.66578]
[1724056244311,1.14553224,2626.1,2625.8,2.66578]
[1724056244848,1.14553224,2626.1,2625.8,5.33156]
[1724056245017,1.14553224,2626.1,2625.8,5.33158]
[1724056245018,0.34806341,2626.1,2625.8,5.33158]
[1724056245220,1.14553224,2626.1,2625.8,2.66578]
[1724056246223,1.14553224,2626.1,2625.8,5.33157]
[1724056246436,1.14553224,2626.1,2625.8,2.66578]
[1724056246640,1.6078429,2626.1,2625.8,2.66578]
[1724056250202,1.6078429,2626.1,2625.6,5.33197]
[1724056250408,1.6078429,2626.1,2625.7,2.66594]
[1724056250699,0.79746883,2626.0,2625.7,2.66594]
[1724056251113,0.34788564,2625.9,2625.6,2.66598]
[1724056251411,0.34788564,2625.9,2625.7,2.66593]
[1724056251698,0.79746883,2626.1,2625.8,2.66585]
[1724056252173,0.79746883,2626.1,2625.8,2.66579]
[1724056252496,3.07746883,2626.2,2625.8,2.66579]
[1724056252861,1.14535447,2626.1,2625.8,2.66579]
[1724056253071,0.34788564,2626.1,2625.8,5.33157]
[1724056253409,1.14535447,2626.1,2625.8,2.66578]
[1724056254604,1.14535447,2626.1,2625.6,5.33197]
[1724056254870,0.79746883,2626.0,2625.6,2.66596]
[1724056255172,0.34788071,2625.9,2625.6,2.66596]
[1724056256204,0.34788071,2625.9,2625.6,5.33196]
[1724056256729,0.34788071,2625.9,2625.7,2.66594]
[1724056258017,0.79746883,2626.1,2625.7,2.66594]
[1724056258189,0.34788071,2625.8,2625.7,2.66594]
[1724056258392,0.79746883,2626.0,2625.7,2.66594]
[1724056258880,0.34788071,2625.9,2625.7,2.66594]
[1724056259623,0.79746883,2626.1,2625.7,2.66594]
[1724056259927,0.79746883,2626.0,2625.7,2.66594]
[1724056260122,0.34788071,2626.0,2625.7,2.66594]
[1724056261737,0.34788071,2626.0,2625.8,2.66585]
[1724056263642,0.34788071,2626.0,2625.6,2.66596]
[1724056263839,1.77124193,2626.0,2625.6,2.66596]
[1724056264019,1.77124193,2626.0,2625.6,5.33195]
[1724056264220,1.77124193,2626.0,2625.6,5.33196]
[1724056264416,1.77124193,2626.0,2625.6,2.66596]
[1724056265840,1.77124193,2626.0,2625.5,2.66609]
[1724056266055,1.14534954,2626.0,2625.5,2.66609]
[1724056269655,1.14534954,2626.0,2625.3,3.9665]
[1724056269656,2.43346883,2625.8,2625.3,2.66629]
[1724056269835,5.09932883,2625.8,2625.2,2.66639]
[1724056270037,1.14533717,2625.7,2625.3,2.66631]
[1724056271456,4.92616883,2625.6,2625.0,2.66659]
[1724056271614,3.46366883,2625.5,2625.0,2.66659]
[1724056271816,2.2925,2625.2,2624.8,2.66685]
[1724056272218,3.08996883,2625.2,2624.8,2.66685]
[1724056272418,0.34786834,2625.1,2624.8,2.66685]
[1724056272618,0.34786834,2625.1,2624.7,5.10061]
[1724056272843,0.34786834,2625.1,2624.8,2.66681]
[1724056273751,0.34786834,2625.1,2624.9,2.66674]
[1724056275025,0.34786834,2625.1,2624.7,2.66688]
[1724056275225,0.34786834,2625.1,2624.8,2.6668]
[1724056277466,0.34786834,2625.1,2624.7,2.66688]
[1724056277946,1.14533717,2625.1,2624.7,2.66688]
[1724056278335,1.14533717,2625.1,2624.7,5.33378]
[1724056278537,1.636,2625.0,2624.5,2.6671]
[1724056278735,3.06376883,2624.9,2624.6,2.66703]
[1724056279063,2.61416834,2624.9,2624.5,2.6671]
[1724056279249,3.41163717,2624.9,2624.6,2.66701]
[1724056279576,2.61416834,2624.9,2624.6,2.66701]
[1724056281744,3.41163717,2624.9,2624.6,2.66701]
[1724056281944,3.41163717,2624.9,2624.5,2.6671]
[1724056282151,4.12553614,2624.9,2624.5,2.6671]
[1724056282868,4.12553614,2624.9,2624.5,5.33421]
[1724056283174,2.61416834,2624.9,2624.5,2.6671]
[1724056283348,2.61416834,2624.9,2624.6,2.667]
[1724056283548,2.61416834,2624.9,2624.5,2.6671]
[1724056284658,0.34786834,2624.9,2624.5,2.6671]
[1724056284866,0.34786834,2624.9,2624.7,2.66696]
[1724056285045,2.34192554,2625.1,2624.7,2.66696]
[1724056285671,0.34773251,2625.0,2624.7,2.66696]
[1724056287260,0.34773251,2625.0,2624.5,2.66707]
[1724056287868,0.34773251,2625.0,2624.6,2.66701]
[1724056289938,0.34773251,2625.0,2624.7,2.66695]
[1724056291871,0.34773251,2625.0,2624.8,2.6668]
[1724056292075,5.34773251,2625.0,2624.8,2.6668]
[1724056292247,5.0,2625.0,2624.8,2.6668]
[1724056292450,0.34773251,2624.9,2624.8,2.6668]
[1724056292648,0.34773251,2624.9,2624.8,7.71906]
[1724056294050,0.34773251,2624.9,2624.8,2.6668]
[1724056295675,2.71553251,2624.9,2624.8,2.6668]
[1724056296746,0.34773251,2624.9,2624.8,2.6668]
[1724056307898,0.34773251,2624.9,2624.8,5.33366]
[1724056312902,0.34773251,2624.9,2624.8,6.102346]
[1724056313108,0.34773251,2624.9,2624.8,8.581946]
[1724056316529,1.14520134,2624.9,2624.8,8.581946]
[1724056317086,1.14520134,2624.9,2624.8,2.6668]
[1724056317288,1.54530686,2624.9,2624.8,2.6668]
[1724056317484,0.34773251,2624.9,2624.8,2.6668]
[1724056318138,1.54844424,2624.9,2624.8,2.6668]
[1724056319081,0.34773251,2624.9,2624.8,2.6668]
[1724056321271,1.54847875,2624.9,2624.8,5.701105]
[1724056322562,1.54847875,2624.9,2624.8,8.367965]
[1724056322764,1.14816676,2624.9,2624.8,8.367965]
[1724056323222,0.34773251,2624.9,2624.8,8.367965]
[1724056327967,0.34773251,2624.9,2624.8,11.034825]
[1724056329542,0.34773251,2624.9,2624.8,12.35993643]
[1724056330277,0.34773251,2624.9,2624.8,11.034825]
[1724056330432,0.34773251,2624.9,2624.8,12.35990461]
[1724056330765,0.34773251,2624.9,2624.8,12.35990262]
[1724056330967,0.34773251,2624.9,2624.8,11.034825]
[1724056331266,0.34773251,2624.9,2624.8,18.02678218]
[1724056331564,0.34773251,2624.9,2624.8,20.01420052]
[1724056331938,0.34773251,2624.9,2624.8,20.81171955]
[1724056332231,5.0,2625.0,2624.9,10.32788]
[1724056332435,5.0,2625.0,2624.9,20.64078975]
[1724056334572,5.0,2625.0,2624.9,18.65328044]
[1724056335991,5.0,2625.0,2624.9,20.6407501]
[1724056336294,5.0,2625.0,2624.9,20.64065913]
[1724056337869,5.0,2625.0,2624.9,18.65322819]
[1724056339261,5.0,2625.0,2624.9,17.32827423]
[1724056345072,5.0,2625.0,2624.9,18.65321286]
[1724056346592,5.0,2625.0,2624.9,17.32827423]
[1724056350624,5.0,2625.0,2624.9,8.33352]
[1724056350993,5.34749072,2625.0,2624.9,8.33352]
[1724056352401,5.34749072,2625.0,2624.9,5.33352]
[1724056356441,5.34749072,2625.0,2624.9,7.71052]
[1724056357033,5.34749072,2625.0,2624.9,5.33352]
[1724056358385,5.34749072,2625.0,2624.9,6.528077]
[1724056361785,5.34749072,2625.0,2624.9,5.33352]
[1724056369471,7.80429072,2625.0,2624.7,2.6669]
[1724056369796,0.80043425,2624.8,2624.6,2.667]
[1724056370089,3.54867064,2624.7,2624.6,2.667]
[1724056370456,2.74823639,2624.7,2624.6,2.667]
[1724056371892,0.34743639,2624.7,2624.6,2.667]
[1724056372095,0.80043425,2624.8,2624.7,2.66697]
[1724056372862,1.14787064,2624.8,2624.7,2.66697]
[1724056373493,0.34743639,2624.8,2624.7,2.66697]
[1724056373794,1.14787064,2624.8,2624.7,2.66697]
[1724056373992,0.34743639,2624.8,2624.7,2.66697]
[1724056375059,1.14787064,2624.8,2624.7,2.66697]
[1724056375283,0.34743639,2624.8,2624.7,2.66697]
[1724056379402,0.34743639,2624.8,2624.6,2.667]
[1724056379695,3.12573425,2624.7,2624.5,2.66714]
[1724056380112,0.34736479,2624.6,2624.5,2.66714]
[1724056382194,0.34736479,2624.6,2624.5,6.167751]
[1724056382371,0.80043425,2624.9,2624.8,2.66686]
[1724056382571,5.80043425,2625.0,2624.9,2.66676]
[1724056383527,6.90464614,2625.0,2624.8,5.33372]
[1724056383666,6.90464614,2625.0,2624.8,2.66686]
[1724056383877,6.90464614,2625.0,2624.8,2.66681]
[1724056384207,5.0,2625.0,2624.9,5.33352]
[1724056384610,5.80043425,2625.0,2624.9,2.66676]
[1724056384976,5.0,2625.0,2624.9,5.33352]
[1724056386000,5.0,2625.0,2624.9,6.96952]
[1724056386186,5.0,2625.0,2624.9,10.325192]
[1724056386389,5.0,2625.0,2624.9,12.991952]
[1724056390208,5.34750306,2625.0,2624.9,12.991952]
[1724056391405,5.0,2625.0,2624.9,12.991952]
[1724056392031,5.0,2625.0,2624.9,15.991952]
[1724056395106,5.34750306,2625.0,2624.9,15.991952]
[1724056399082,5.0,2625.0,2624.9,15.991952]
[1724056403945,0.80043425,2625.7,2625.4,2.285]
[1724056404143,1.59713836,2625.9,2625.7,2.66595]
[1724056404144,1.20074624,2625.9,2625.7,2.66595]
[1724056404350,1.19817201,2625.9,2625.8,2.66585]
[1724056404628,0.7987557,2625.9,2625.8,5.3317]
[1724056404795,0.79868274,2626.0,2625.9,2.66575]
[1724056404932,1.19817201,2626.1,2625.9,2.66575]
[1724056405388,0.79854013,2626.0,2625.9,2.66575]
[1724056406575,0.79854013,2626.0,2625.9,5.3315]
[1724056407295,0.79854013,2626.0,2625.9,2.66575]
[1724056409083,0.79854013,2626.1,2626.0,2.66565]
[1724056410486,2.4414,2626.2,2626.1,2.66554]
[1724056410487,3.23994013,2626.2,2626.1,2.66554]
[1724056410861,0.79854013,2626.2,2626.1,2.66554]
[1724056413196,0.79854013,2626.4,2626.2,2.66544]
[1724056413495,0.79742881,2626.4,2626.3,2.66534]
[1724056414083,0.79742881,2626.4,2626.3,5.33068]
[1724056414461,0.79707006,2626.5,2626.4,2.66524]
[1724056416368,0.79707006,2626.6,2626.4,2.66524]
[1724056417994,0.34757466,2626.5,2626.4,2.66524]
[1724056418310,8.13707006,2626.7,2626.4,2.66524]
[1724056418512,0.34757466,2626.5,2626.4,2.66524]
[1724056418713,0.79707006,2626.7,2626.4,2.66524]
[1724056418714,0.79707006,2626.6,2626.4,2.66524]
[1724056419009,0.34757466,2626.5,2626.4,2.66524]
[1724056419308,0.34757466,2626.5,2626.4,5.33048]
[1724056419515,0.34757466,2626.5,2626.4,6.130057]
[1724056419801,0.79707006,2626.8,2626.6,2.66498]
[1724056420003,0.79707006,2626.8,2626.6,2.66497]
[1724056420208,0.79707006,2626.9,2626.7,2.66494]
[1724056422375,0.79707006,2627.0,2626.7,2.66494]
[1724056429493,0.79707006,2627.0,2626.6,2.66497]
[1724056429734,0.79707006,2626.9,2626.6,5.32996]
[1724056430153,0.79707006,2627.0,2626.6,5.32996]
[1724056430352,0.79707006,2626.9,2626.6,5.32996]
[1724056431056,0.79707006,2626.9,2626.7,2.66492]
[1724056431711,0.79707006,2626.9,2626.6,2.66497]
[1724056431913,0.79707006,2626.8,2626.6,2.66497]
[1724056432112,0.79707006,2626.9,2626.6,2.66497]
[1724056432850,0.34757466,2626.8,2626.6,2.66497]
[1724056434329,1.14464472,2626.8,2626.6,2.66497]
[1724056435773,0.34757466,2626.8,2626.6,2.66497]
[1724056436287,1.14464472,2626.8,2626.6,2.66497]
[1724056437272,1.14464472,2626.8,2626.6,5.32993]
[1724056437434,0.34757466,2626.8,2626.7,0.266497]
[1724056437637,0.34757466,2626.8,2626.6,5.32993]
[1724056438568,0.34757466,2626.8,2626.6,5.32994]
[1724056438773,0.34757466,2626.8,2626.6,2.66496]
[1724056438972,2.2724,2626.7,2626.2,10.00537]
[1724056439279,0.34757466,2626.6,2626.3,2.66531]
[1724056439475,0.34757466,2626.6,2626.4,2.66523]
[1724056439867,0.34757466,2626.6,2626.4,5.33046]
[1724056440176,0.34757466,2626.6,2626.4,2.66523]
[1724056440493,0.34757466,2626.6,2626.4,2.66518]
[1724056441086,0.34757466,2626.6,2626.2,2.66538]
[1724056441254,4.61521673,2626.6,2626.2,2.66538]
[1724056441456,3.41704472,2626.6,2626.3,2.66526]
[1724056441679,1.14464472,2626.6,2626.4,2.66518]
[1724056442192,0.34757466,2626.6,2626.4,2.66518]
[1724056442389,1.14464472,2626.6,2626.4,2.66518]
[1724056442539,0.34757466,2626.6,2626.4,5.33036]
[1724056442739,1.14464472,2626.6,2626.4,5.33036]
[1724056442976,1.14464472,2626.6,2626.4,2.66518]
[1724056443277,1.14464472,2626.6,2626.5,2.66514]
[1724056443278,0.34757466,2626.6,2626.5,2.66514]
[1724056444442,1.14464472,2626.6,2626.5,2.66514]
[1724056447147,1.14464472,2626.6,2626.4,2.66518]
[1724056447346,0.79707006,2626.5,2626.4,2.66518]
[1724056447756,1.14464472,2626.5,2626.4,2.66518]
[1724056449295,1.14464472,2626.5,2626.4,7.909011]
[1724056451166,1.14464472,2626.5,2626.4,10.378711]
[1724056453475,0.34757466,2626.5,2626.4,10.378711]
[1724056454101,0.34757466,2626.5,2626.4,13.043951]
[1724056455000,0.79909096,2626.6,2626.4,13.043951]
[1724056455001,0.79909096,2626.6,2626.5,5.33028]
[1724056455207,0.79909096,2626.6,2626.5,6.6346751]
[1724056455367,1.19817201,2626.8,2626.5,6.6346751]
[1724056455368,1.19817201,2626.7,2626.6,2.66504]
[1724056455574,1.59713836,2626.8,2626.7,2.66494]
[1724056456793,1.99765872,2626.8,2626.5,2.66506]
[1724056457109,1.99865703,2626.8,2626.6,2.66504]
[1724056457284,1.59886054,2626.7,2626.6,2.66504]
[1724056458368,1.99865703,2626.8,2626.6,5.33008]
[1724056458575,1.5994409,2626.7,2626.6,2.66504]
[1724056461278,1.99968609,2626.8,2626.6,2.66504]
[1724056461611,1.99968609,2626.8,2626.1,5.66553]
[1724056461612,0.43993094,2626.8,2626.4,2.66524]
[1724056461906,1.60001787,2626.5,2626.4,2.66524]
[1724056462081,1.60001787,2626.6,2626.4,2.66524]
[1724056462283,1.60001787,2626.5,2626.4,2.66524]
[1724056462890,1.94759253,2626.5,2626.4,2.66524]
[1724056463702,1.94759253,2626.5,2626.4,3.589191]
[1724056463889,1.94759253,2626.5,2626.4,6.254431]
[1724056464085,2.34764259,2626.5,2626.2,4.30137]
[1724056464277,1.20027409,2626.4,2626.3,5.33068]
[1724056464479,1.20027409,2626.4,2626.3,6.027348]
[1724056464711,1.54784875,2626.4,2626.3,6.027348]
[1724056465494,1.54784875,2626.4,2626.3,8.391548]
[1724056465793,0.34757466,2626.4,2626.3,8.391548]
[1724056465993,1.54784875,2626.4,2626.3,8.391548]
[1724056467679,0.34757466,2626.4,2626.3,8.391548]
[1724056468112,1.54784875,2626.4,2626.3,8.391548]
[1724056469575,1.14776139,2626.4,2626.3,14.056888]
[1724056471430,1.14776139,2626.4,2626.3,11.391548]
[1724056472727,2.34803548,2626.4,2626.3,11.391548]
[1724056472906,0.34757466,2626.4,2626.3,13.027548]
[1724056474012,1.54784875,2626.4,2626.3,13.027548]
[1724056475031,0.34757466,2626.4,2626.3,13.027548]
[1724056475524,1.54784875,2626.4,2626.3,13.027548]
[1724056476311,1.14777188,2626.4,2626.3,13.027548]
[1724056477068,1.27416266,2626.4,2626.3,13.027548]
[1724056482735,1.27416266,2626.4,2626.3,11.391548]
[1724056483049,1.27408938,2626.4,2626.3,12.33088]
[1724056485378,1.27408938,2626.4,2626.3,14.99622]
[1724056488675,0.47396544,2626.4,2626.3,14.99622]
[1724056489067,0.80012394,2626.5,2626.4,7.99572]
[1724056489293,0.80012394,2626.5,2626.4,10.294914]
[1724056489436,1.27408938,2626.5,2626.4,10.294914]
[1724056493975,0.47396544,2626.5,2626.4,10.294914]
[1724056495579,1.67423953,2626.5,2626.4,7.629674]
[1724056496847,0.47396544,2626.5,2626.4,7.629674]
[1724056498148,1.27416852,2626.5,2626.4,7.629674]
[1724056499147,0.47396544,2626.5,2626.4,7.629674]
[1724056501405,0.47396544,2626.5,2626.4,5.33048]
[1724056503212,2.07433089,2626.5,2626.3,2.66534]
[1724056503348,2.07454714,2626.5,2626.3,2.66529]
[1724056503549,1.6005817,2626.4,2626.3,2.66529]
[1724056504171,2.07454714,2626.4,2626.3,2.66529]
[1724056505284,1.67426342,2626.4,2626.3,2.66529]
[1724056505603,1.67426342,2626.4,2626.3,5.33063]
[1724056506806,0.47396544,2626.4,2626.3,5.33063]
[1724056507016,0.47396544,2626.4,2626.3,6.407248]
[1724056508511,0.47396544,2626.4,2626.3,5.33063]
[1724056510275,1.67426342,2626.4,2626.3,5.33063]
[1724056512057,1.67426342,2626.4,2626.3,2.66529]
[1724056512354,2.07454714,2626.4,2626.3,2.66529]
[1724056513387,1.67421972,2626.4,2626.3,5.33063]
[1724056515058,0.47396544,2626.4,2626.3,8.623953]
[1724056515460,1.27406242,2626.4,2626.3,8.623953]
[1724056516798,1.27406242,2626.4,2626.3,11.289293]
[1724056516993,1.27406242,2626.4,2626.3,14.289293]
[1724056517493,0.80009698,2626.4,2626.3,14.289293]
[1724056517813,1.27406242,2626.4,2626.3,14.289293]
[1724056527412,0.47396544,2626.4,2626.3,14.289293]
[1724056527599,0.80009698,2626.8,2626.6,2.66504]
[1724056527799,0.80009698,2627.0,2626.9,5.32946]
[1724056527994,0.80009698,2627.0,2626.9,6.96546]
[1724056528194,0.80009698,2627.1,2627.0,5.32926]
[1724056528394,0.80009698,2627.2,2627.1,5.32906]
[1724056528635,1.20025428,2627.3,2627.2,2.66443]
[1724056528835,1.6005817,2627.4,2627.2,2.66443]
[1724056528996,1.6005817,2627.4,2627.1,2.66453]
[1724056528997,2.12803632,2627.5,2627.3,2.66433]
[1724056529197,2.81837804,2627.5,2627.3,2.66433]
[1724056529393,1.59836799,2627.4,2627.3,2.66433]
[1724056529962,2.00019592,2627.4,2627.3,2.66433]
[1724056530119,2.81837804,2627.5,2627.3,2.66433]
[1724056530312,2.12803632,2627.5,2627.4,2.66423]
[1724056530513,0.1278404,2627.5,2627.4,2.66423]
[1724056531365,4.11517595,2627.5,2627.4,2.66423]
[1724056531523,4.11517595,2627.5,2626.7,2.66488]
[1724056531524,2.3589,2627.1,2626.7,2.66488]
[1724056531848,3.55727431,2626.8,2626.7,2.66488]
[1724056532859,3.55727431,2626.8,2626.5,2.66508]
[1724056533011,3.55727431,2626.8,2626.7,2.66494]
[1724056535127,4.20711735,2626.8,2626.7,2.66494]
[1724056536155,4.20711735,2626.8,2626.5,2.66508]
[1724056536383,0.79896736,2626.6,2626.5,2.66508]
[1724056537197,1.4488104,2626.6,2626.5,5.33022]
[1724056537872,2.4684,2626.5,2626.1,2.73184609]
[1724056538072,0.79907424,2626.3,2626.0,2.66558]
[1724056538231,0.79907424,2626.3,2626.1,2.66554]
[1724056538232,0.79907424,2626.2,2626.1,2.66554]
[1724056538432,0.64984304,2626.2,2626.1,2.66554]
[1724056538868,1.19861137,2626.3,2626.1,2.66554]
[1724056539041,0.64984304,2626.2,2626.1,2.66554]
[1724056539443,0.79895769,2626.2,2626.1,2.66554]
[1724056539644,1.44880073,2626.2,2626.1,2.66554]
[1724056542885,1.44880073,2626.2,2626.1,8.321198]
[1724056542886,0.64984304,2626.2,2626.1,8.321198]
[1724056543258,0.79895769,2626.5,2626.4,2.66524]
[1724056543447,1.19861137,2626.7,2626.5,2.66514]
[1724056543643,1.19861137,2626.6,2626.5,2.66514]
[1724056544267,1.19861137,2626.6,2626.3,2.66525]
[1724056544470,0.79853908,2626.4,2626.3,2.66525]
[1724056545049,3.20353908,2626.5,2626.3,2.66525]
[1724056545386,1.19861137,2626.6,2626.4,2.66524]
[1724056545556,1.9963477,2626.8,2626.6,2.66504]
[1724056545557,1.19861137,2626.8,2626.6,2.66504]
[1724056545756,1.19861137,2626.7,2626.6,2.66504]
[1724056546277,1.19861137,2626.7,2626.5,2.66512]
[1724056546646,3.64721137,2626.6,2626.4,2.6652]
[1724056546847,3.24716431,2626.6,2626.4,2.6652]
[1724056547359,0.79856431,2626.5,2626.4,2.6652]
[1724056547983,3.24716431,2626.6,2626.4,2.6652]
[1724056548161,3.24716431,2626.6,2626.3,5.33056]
[1724056548344,0.79856431,2626.5,2626.3,5.33056]
[1724056548885,0.79856431,2626.5,2626.4,2.66524]
[1724056549046,0.79856431,2626.5,2626.3,2.66528]
[1724056549247,0.79856431,2626.5,2626.3,5.33055]
[1724056549786,0.79856431,2626.5,2626.3,2.66527]
[1724056550003,0.79856431,2626.5,2626.4,2.66524]
[1724056552892,1.44840735,2626.5,2626.4,2.66524]
[1724056553894,0.64984304,2626.5,2626.4,2.66524]
[1724056554191,0.64984304,2626.5,2626.4,5.33048]
[1724056554590,1.44840735,2626.5,2626.4,5.33048]
[1724056554976,0.64984304,2626.5,2626.4,5.33048]
[1724056557094,0.64984304,2626.5,2626.4,11.376128]
[1724056557410,0.64984304,2626.5,2626.4,6.274088]
[1724056560832,0.64984304,2626.5,2626.4,6.274088]
[1724056561341,0.79856431,2626.7,2626.6,2.66504]
[1724056562028,1.19861137,2626.7,2626.6,2.66504]
[1724056562208,1.19861137,2626.7,2626.5,2.66509]
[1724056563376,3.52821137,2626.6,2626.3,5.33056]
[1724056563644,0.79859795,2626.5,2626.3,5.33056]
[1724056563802,0.79859795,2626.5,2626.4,2.66524]
[1724056565052,1.39106212,2626.5,2626.1,2.6655]
[1724056565254,0.79861736,2626.3,2625.9,2.66568]
[1724056565454,0.79861736,2626.3,2626.0,2.66558]
[1724056565659,0.79861736,2626.2,2626.0,2.66558]
[1724056566156,0.79861736,2626.2,2626.1,2.66554]
[1724056566342,0.79861736,2626.3,2626.1,2.66554]
[1724056567856,0.64984304,2626.2,2626.1,2.66554]
[1724056568353,0.79861736,2626.2,2626.1,2.66554]
[1724056568656,1.4484604,2626.2,2626.1,2.66554]
[1724056568854,0.64984304,2626.2,2626.1,2.66554]
[1724056569153,0.79861736,2626.3,2626.1,2.66554]
[1724056569360,0.79861736,2626.2,2626.1,2.66554]
[1724056569656,0.64984304,2626.2,2626.1,2.66554]
[1724056570022,0.79861736,2626.2,2626.1,2.66554]
[1724056570217,1.4484604,2626.2,2626.1,2.66554]
[1724056570925,1.4484604,2626.2,2625.9,2.66566]
[1724056571149,2.3893,2626.0,2625.7,2.66588]
[1724056571455,0.79861736,2626.1,2625.9,2.66575]
[1724056572234,0.79861736,2626.1,2625.9,5.33143]
[1724056572434,3.18791736,2626.2,2626.0,2.66565]
[1724056572633,0.79861736,2626.2,2626.1,2.66554]
[1724056575368,1.19861137,2626.3,2626.1,2.66554]
[1724056576460,1.19861137,2626.2,2626.1,2.66554]
[1724056577961,1.19861137,2626.3,2626.1,2.66554]
[1724056578457,1.19861137,2626.2,2626.1,2.66554]
[1724056579866,1.19861137,2626.3,2626.1,2.66554]
[1724056580302,1.19861137,2626.2,2626.1,2.66554]
[1724056580686,1.19861137,2626.3,2626.1,2.66554]
[1724056581210,1.19861137,2626.3,2626.1,5.631962]
[1724056581420,0.7991055,2626.3,2626.2,2.66544]
[1724056581578,0.79915582,2626.3,2626.2,2.66544]
[1724056581775,1.19861137,2626.4,2626.2,2.66544]
[1724056582102,0.79915679,2626.3,2626.2,2.66544]
[1724056582286,1.19861137,2626.4,2626.2,2.66544]
[1724056582889,0.64984304,2626.3,2626.2,2.66544]
[1724056585484,0.64984304,2626.3,2626.1,2.66554]
[1724056585686,0.79926031,2626.2,2626.1,2.66554]
[1724056586229,1.44910335,2626.2,2626.1,2.66554]
[1724056586405,1.44913366,2626.2,2626.1,2.66554]
[1724056586605,0.64984304,2626.2,2626.1,2.66554]
[1724056586803,0.79929151,2626.2,2626.1,2.66554]
[1724056587130,1.44913455,2626.2,2626.1,2.66554]
[1724056589556,0.64984304,2626.2,2626.1,5.33108]
[1724056589731,1.44913455,2626.2,2626.1,5.33108]
[1724056596515,1.84845441,2626.2,2626.1,5.33108]
[1724056596712,0.64984304,2626.2,2626.1,5.33108]
[1724056597046,0.79942458,2626.2,2626.1,5.33108]
[1724056597341,4.50037545,2626.2,2625.8,2.66578]
[1724056597641,1.19927576,2626.1,2625.9,2.66573]
[1724056598006,0.79949621,2626.0,2625.9,2.66573]
[1724056598206,1.44933925,2626.0,2625.9,2.66573]
[1724056599848,0.64984304,2626.0,2625.9,2.66573]
[1724056600163,0.64984304,2626.0,2625.9,3.5918]
[1724056600311,1.44933925,2626.0,2625.9,3.5918]
[1724056600513,0.64984304,2626.0,2625.9,10.22985]
[1724056602254,1.19927576,2626.2,2626.1,2.66554]
[1724056602937,1.19927576,2626.3,2626.2,2.66544]
[1724056603357,1.59783241,2626.4,2626.2,2.66544]
[1724056603919,1.19942421,2626.3,2626.2,2.66544]
[1724056604324,1.59783241,2626.4,2626.2,2.66544]
[1724056604625,1.59783241,2626.3,2626.2,2.66544]
[1724056604928,1.59783241,2626.4,2626.2,2.66544]
[1724056605129,1.59783241,2626.4,2626.3,2.66534]
[1724056605332,1.19963526,2626.4,2626.3,7.499758]
[1724056605532,1.19963526,2626.5,2626.4,5.33048]
[1724056605736,1.19963526,2626.6,2626.5,7.59038]